[Event "71st MNE-ch 2019"]
[Site "Podgorica"]
[Date "2019.05.23"]
[Round "6.16"]
[White "Petrovic, Slavko"]
[Black "Ljeskovic, Luka"]
[Result "1-0"]
[ECO "B18"]
[WhiteElo "1945"]
[BlackElo "1710"]
[Annotator "NA RC"]
[PlyCount "67"]
[EventDate "2019.05.18"]
[EventType "swiss"]
[EventCountry "MNE"]
[SourceTitle "playchess.com"]
[Source "ChessBase"]
[SourceQuality "1"]
[TimeControl "40/5400+30:1800+30"]

1. e4 {[%emt 0:03:41]} c6 {[%emt 0:00:00]} 2. d4 {[%emt 0:00:19]} d5 {[%emt 0:00:00]} 3. Nd2 {[%emt 0:00:18]} dxe4 {[%emt 0:00:00]} 4. Nxe4 {[%emt 0:00:09]} Bf5 {[%emt 0:00:00]} 5. Ng3 {[%emt 0:00:31]} Bg6 {[%emt 0:01:00]} 6. Nf3 {[%emt 0:00:49]} Nd7 {[%emt 0:00:44]} 7. Bd3 {[%emt 0:03:51]} Bxd3 {[%emt 0:00:11]} 8. Qxd3 {[%emt 0:00:10]} e6 {[%emt 0:00:16]} 9. O-O {[%emt 0:01:36]} Qc7 {[%emt 0:00:55]} 10. Re1 {[%emt 0:05:18]} Ngf6 {[%emt 0:00:08]} 11. c4 {[%emt 0:00:51]} O-O-O {[%emt 0:01:25]} 12. Qc2 {[%emt 0:06:05] B18: Classical Caro-Kann: 4...Bf5 sidelines} h5 $146 {[%emt 0:00:36]} ({Predecessor:} 12... Bb4 13. Re2 h5 14. a3 Bd6 15. b4 h4 16. Nf1 Bf4 17. Qa4 Kb8 18. Qc2 Rh5 19. Bxf4 Qxf4 {1-0 (28) Daamen,R (1782)-Wennekes,H (1810) Roosendaal 2009}) 13. Bg5 {[%emt 0:03:05]} Bd6 {[%emt 0:02:27]} 14. Qc1 {[%emt 0:20:32]} c5 {[%emt 0:04:00]} 15. d5 {[%emt 0:04:56]} Rde8 {[%emt 0:08:50]} 16. dxe6 {[%emt 0:03:22]} fxe6 {[%emt 0:00:23]} 17. a4 {[%emt 0:11:13]} Ng4 {[%emt 0:02:25]} 18. Ra3 {[%emt 0:09:19]} Nde5 {[%emt 0:04:20]} 19. Nh4 {[%emt 0:06:27]} Qf7 {[%emt 0:10:27]} (19... Nc6 $11 {and Black is okay.}) 20. Ne4 {[%emt 0:02:47]} Bc7 {[%emt 0:09:06]} 21. f3 {[%emt 0:01:41]} Nxh2 {[%emt 0:05:47]} (21... Nf6 $16) 22. f4 {[%emt 0:02:58]} Neg4 {[%emt 0:01:16]} 23. Rd3 {[%emt 0:00:58]} Kb8 {[%emt 0:05:00]} 24. Red1 {[%emt 0:00:23]} e5 $18 {[%emt 0:04:35]} 25. f5 {[%emt 0:00:48]} g6 {[%emt 0:00:16]} 26. Rd7 {[%emt 0:00:23]} Qf8 {[%emt 0:00:56]} 27. f6 {[%emt 0:01:06]} Rd8 {[%emt 0:01:18]} 28. f7 {[%emt 0:01:09]} Rxd7 {[%emt 0:00:19]} 29. Rxd7 {[%emt 0:00:14]} Qc8 {[%emt 0:00:21]} 30. Qd2 {[%emt 0:00:41]} Rf8 {[%emt 0:01:18]} 31. Nxg6 {[%emt 0:00:45]} h4 {[%emt 0:00:50]} 32. Nxf8 {[%emt 0:02:16]} h3 {[%emt 0:00:28]} 33. Ne6 {[%emt 0:00:40]} hxg2 {[%emt 0:00:08]} 34. Kxg2 {[%emt 0:00:25]} 1-0

[Event "71st MNE-ch 2019"]
[Site "Podgorica"]
[Date "2019.05.24"]
[Round "7.2"]
[White "Tomic, Aleksandar"]
[Black "Blagojevic, Dragisa"]
[Result "1-0"]
[ECO "D45"]
[WhiteElo "2357"]
[BlackElo "2499"]
[Annotator "RC"]
[PlyCount "177"]
[EventDate "2019.05.18"]
[EventType "swiss"]
[EventCountry "MNE"]
[SourceTitle "playchess.com"]
[Source "ChessBase"]
[SourceQuality "1"]
[TimeControl "40/5400+30:1800+30"]

1. d4 {[%emt 0:10:43]} d5 {[%emt 0:00:00]} 2. c4 {[%emt 0:00:18]} e6 {[%emt 0:00:00]} 3. Nc3 {[%emt 0:00:13]} c6 {[%emt 0:00:00]} 4. e3 {[%emt 0:00:17]} Nf6 {[%emt 0:00:07]} 5. Nf3 {[%emt 0:00:13]} Nbd7 {[%emt 0:00:26]} 6. Qc2 {[%emt 0:00:07]} b6 {[%emt 0:00:53]} 7. cxd5 {[%emt 0:08:42]} exd5 {[%emt 0:00:36]} 8. Bd3 {[%emt 0:01:18]} Bb7 {[%emt 0:01:04]} 9. O-O {[%emt 0:01:51]} Be7 {[%emt 0:00:39]} 10. Ne5 {[%emt 0:13:17]} O-O {[%emt 0:01:41]} 11. e4 {[%emt 0:05:12]} dxe4 {[%emt 0:03:50]} 12. Nxe4 {[%emt 0:00:27]} c5 {[%emt 0:01:21]} 13. Ng5 {[%emt 0:04:26]} g6 {[%emt 0:00:36]} 14. Bc4 {[%emt 0:15:38]} Nxe5 {[%emt 0:12:05]} 15. dxe5 {[%emt 0:00:28]} Nd5 {[%emt 0:00:12]} 16. h4 {[%emt 0:02:44]} Qd7 {[%emt 0:10:35]} 17. Qe2 {[%emt 0:16:30]} f6 {[%emt 0:13:27]} 18. Nf3 {[%emt 0:02:32]} Kg7 {[%emt 0:03:34]} 19. Rd1 {[%emt 0:04:49]} Rad8 {[%emt 0:00:53]} 20. e6 {[%emt 0:03:50]} Qc7 {[%emt 0:11:13]} 21. h5 {[%emt 0:01:54]} g5 {[%emt 0:02:51]} 22. h6+ {[%emt 0:00:53]} Kxh6 {[%emt 0:01:36]} 23. Nh4 {[%emt 0:02:16]} Qe5 {[%emt 0:10:05]} 24. Qc2 {[%emt 0:02:21]} f5 {[%emt 0:01:53]} 25. Bd2 {[%emt 0:00:35]} Qe4 {[%emt 0:04:47]} 26. Qxe4 {[%emt 0:00:13]} fxe4 {[%emt 0:00:04]} 27. g3 {[%emt 0:01:10]} Bf6 {[%emt 0:02:07]} 28. Nf5+ {[%emt 0:00:25]} Kg6 {[%emt 0:00:32]} 29. g4 {[%emt 0:00:27]} Rfe8 {[%emt 0:01:25]} 30. Bc3 {[%emt 0:00:37]} Bxc3 {[%emt 0:05:02]} 31. bxc3 {[%emt 0:00:30]} Kf6 {[%emt 0:05:28]} 32. e7 {[%emt 0:00:27]} Rxe7 {[%emt 0:02:57]} 33. Nxe7 {[%emt 0:00:30]} Kxe7 {[%emt 0:00:07]} 34. Bxd5 {[%emt 0:00:19]} Bxd5 {[%emt 0:00:21]} 35. Rd2 {[%emt 0:00:33]} Be6 {[%emt 0:01:41]} 36. Rxd8 {[%emt 0:00:15]} Kxd8 {[%emt 0:00:04]} 37. Re1 {[%emt 0:00:11]} Bxa2 {[%emt 0:02:25]} 38. Ra1 {[%emt 0:00:05]} Be6 {[%emt 0:00:39]} 39. Rxa7 {[%emt 0:00:04]} Bd7 {[%emt 0:00:34]} 40. Kf1 {[%emt 0:00:00]} b5 {[%emt 0:00:00]} 41. Ke1 {[%emt 0:02:34]} h6 {[%emt 0:02:33]} 42. Ra6 {[%emt 0:00:53]} Bxg4 {[%emt 0:05:36]} 43. Rxh6 {[%emt 0:01:09]} Kd7 {[%emt 0:01:01]} 44. Rb6 {[%emt 0:07:04]} Be6 {[%emt 0:02:18]} 45. Rxb5 {[%emt 0:00:36]} Kc6 {[%emt 0:00:20]} 46. Ra5 {[%emt 0:01:17]} Kd5 {[%emt 0:07:13]} 47. Kd2 {[%emt 0:00:44]} Bg4 {[%emt 0:03:33]} 48. Ra4 {[%emt 0:03:10]} Bd7 {[%emt 0:02:26]} 49. Ra7 {[%emt 0:01:00]} Bh3 {[%emt 0:01:02]} 50. Rg7 {[%emt 0:01:17]} g4 {[%emt 0:00:39]} 51. Ke3 {[%emt 0:00:57]} Kc4 {[%emt 0:00:43]} 52. Rg5 {[%emt 0:00:05]} Bg2 {[%emt 0:01:25]} 53. Rxg4 {[%emt 0:00:28]} Bf3 {[%emt 0:00:14]} 54. Rg5 {[%emt 0:00:29]} Bh1 {[%emt 0:02:13]} 55. Kd2 {[%emt 0:04:39]} Bf3 {[%emt 0:00:10]} 56. Rf5 {[%emt 0:01:18]} Bg4 {[%emt 0:01:55]} 57. Rf7 {[%emt 0:06:51]} Bf3 {[%emt 0:01:13]} 58. Kc2 {[%emt 0:01:19]} Kb5 {[%emt 0:01:00]} 59. Ra7 {[%emt 0:03:18]} Kc4 {[%emt 0:00:27]} 60. Ra5 {[%emt 0:00:16]} Bh5 {[%emt 0:01:52]} 61. Ra4+ {[%emt 0:00:36]} Kd5 {[%emt 0:00:44]} 62. Kd2 {[%emt 0:01:13]} Be8 {[%emt 0:00:08]} 63. Ra6 {[%emt 0:00:42]} Bb5 {[%emt 0:00:41]} 64. Rb6 {[%emt 0:00:55]} Bf1 {[%emt 0:01:02]} 65. Rb1 {[%emt 0:00:31]} Bg2 {[%emt 0:00:14]} 66. Ra1 {[%emt 0:00:40]} Kc4 {[%emt 0:00:15]} 67. Kc2 {[%emt 0:00:39]} Bf3 {[%emt 0:00:13]} 68. Ra5 {[%emt 0:00:59]} Bh5 {[%emt 0:01:31]} 69. Ra4+ {[%emt 0:00:39]} Kd5 {[%emt 0:00:06]} 70. Kd2 {[%emt 0:00:23]} Be8 {[%emt 0:00:06]} 71. Ra7 {[%emt 0:00:41]} Kc4 {[%emt 0:01:25]} 72. Re7 {[%emt 0:00:26]} Bc6 {[%emt 0:00:10]} 73. Rc7 {[%emt 0:00:15]} Ba8 {[%emt 0:02:56]} 74. Kc2 {[%emt 0:00:59]} Bd5 {[%emt 0:00:45]} 75. Ra7 {[%emt 0:00:26]} Bc6 {[%emt 0:00:18]} 76. Kd2 {[%emt 0:00:28]} Bd5 {[%emt 0:00:24]} 77. Ra6 {[%emt 0:00:29]} Bb7 {[%emt 0:00:37]} 78. Ra3 {[%emt 0:00:16]} Bd5 {[%emt 0:00:43]} 79. Ke3 {[%emt 0:00:08]} Kb5 {[%emt 0:00:24]} 80. Kf4 {[%emt 0:00:09]} Kc4 {[%emt 0:00:16]} 81. Ke5 {[%emt 0:00:08]} Bb7 {[%emt 0:01:04]} 82. Kd6 {[%emt 0:00:16]} Bc8 {[%emt 0:00:35]} 83. Ra5 {[%emt 0:00:46]} Bg4 {[%emt 0:00:12]} 84. Rxc5+ {[%emt 0:00:11]} Kd3 {[%emt 0:00:04]} 85. Ke5 {[%emt 0:00:16]} Bf3 {[%emt 0:00:28]} 86. Kf4 {[%emt 0:00:08]} Ke2 {[%emt 0:00:13]} 87. Kg3 {[%emt 0:00:07]} Kd3 {[%emt 0:00:06]} 88. Rc7 {[%emt 0:00:11]} Bh1 {[%emt 0:00:16]} 89. c4 {[%emt 0:00:33]} 1-0

[Event "71st MNE-ch 2019"]
[Site "Podgorica"]
[Date "2019.05.24"]
[Round "7.5"]
[White "Draskovic, Luka"]
[Black "Musovic, Armin"]
[Result "1-0"]
[ECO "A39"]
[WhiteElo "2430"]
[BlackElo "2297"]
[Annotator "RC"]
[PlyCount "67"]
[EventDate "2019.05.18"]
[EventType "swiss"]
[EventCountry "MNE"]
[SourceTitle "playchess.com"]
[Source "ChessBase"]
[SourceQuality "1"]
[TimeControl "40/5400+30:1800+30"]

1. Nf3 {[%emt 0:00:00]} Nf6 {[%emt 0:00:29]} 2. g3 {[%emt 0:00:26]} g6 {[%emt 0:00:11]} 3. Bg2 {[%emt 0:01:18]} Bg7 {[%emt 0:00:25]} 4. O-O {[%emt 0:01:21]} O-O {[%emt 0:00:27]} 5. c4 {[%emt 0:01:37]} c5 {[%emt 0:03:03]} 6. Nc3 {[%emt 0:01:15]} Nc6 {[%emt 0:00:36]} 7. d4 {[%emt 0:00:47]} cxd4 {[%emt 0:11:05]} 8. Nxd4 {[%emt 0:00:06]} Nxd4 {[%emt 0:00:33]} 9. Qxd4 {[%emt 0:00:07]} d6 {[%emt 0:00:22]} 10. Qd3 {[%emt 0:12:50]} Ng4 {[%emt 0:10:10]} 11. b3 {[%emt 0:19:59]} Qa5 {[%emt 0:09:51]} 12. Bd2 {[%emt 0:00:49]} Bf5 {[%emt 0:10:30]} 13. Qd5 {[%emt 0:08:34]} Qa3 {[%emt 0:09:38]} 14. e4 {[%emt 0:13:26]} Be6 {[%emt 0:07:51]} 15. Qd3 {[%emt 0:01:35]} Qc5 {[%emt 0:02:57]} 16. Rac1 {[%emt 0:05:27]} Ne5 {[%emt 0:16:15]} 17. Qc2 {[%emt 0:00:45]} Qc8 {[%emt 0:00:15]} 18. Nd5 {[%emt 0:06:20]} Re8 {[%emt 0:00:35]} 19. Kh1 {[%emt 0:04:06]} Bd7 {[%emt 0:08:56]} 20. Bc3 {[%emt 0:04:13]} e6 {[%emt 0:00:39]} 21. Ne3 {[%emt 0:00:26]} Qc5 {[%emt 0:01:12]} 22. Qd2 {[%emt 0:01:40]} Bf8 {[%emt 0:04:26]} 23. f4 {[%emt 0:01:44]} Nc6 {[%emt 0:00:02]} 24. Ng4 {[%emt 0:00:19]} Bg7 {[%emt 0:00:04]} 25. Nf6+ {[%emt 0:01:00]} Bxf6 {[%emt 0:00:08]} 26. Bxf6 {[%emt 0:00:04]} h5 {[%emt 0:01:04]} 27. Rfd1 {[%emt 0:03:33]} Bc8 {[%emt 0:01:13]} 28. e5 {[%emt 0:04:20]} dxe5 {[%emt 0:00:23]} 29. fxe5 {[%emt 0:00:05]} Qf8 {[%emt 0:00:08]} 30. g4 {[%emt 0:01:23]} h4 {[%emt 0:00:39]} 31. Qg5 {[%emt 0:00:07]} Kh7 {[%emt 0:00:08]} 32. Qxh4+ {[%emt 0:00:13]} Qh6 {[%emt 0:00:03]} 33. Qxh6+ {[%emt 0:00:08]} Kxh6 {[%emt 0:00:02]} 34. Rc3 {[%emt 0:00:09]} 1-0

[Event "71st MNE-ch 2019"]
[Site "Podgorica"]
[Date "2019.05.24"]
[Round "7.10"]
[White "Vujacic, Igor"]
[Black "Djurovic, Peko"]
[Result "1-0"]
[ECO "B33"]
[WhiteElo "2205"]
[BlackElo "1898"]
[Annotator "NA RC"]
[PlyCount "97"]
[EventDate "2019.05.18"]
[EventType "swiss"]
[EventCountry "MNE"]
[SourceTitle "playchess.com"]
[Source "ChessBase"]
[SourceQuality "1"]
[TimeControl "40/5400+30:1800+30"]

1. e4 {[%emt 0:12:58]} c5 {[%emt 0:00:00]} 2. Nf3 {[%emt 0:00:11]} Nc6 {[%emt 0:00:05]} 3. d4 {[%emt 0:00:12]} cxd4 {[%emt 0:00:48]} 4. Nxd4 {[%emt 0:00:08]} Nf6 {[%emt 0:00:04]} 5. Nc3 {[%emt 0:00:25]} e5 {[%emt 0:02:00]} 6. Ndb5 {[%emt 0:00:25]} d6 {[%emt 0:00:14]} 7. Bg5 {[%emt 0:00:09]} a6 {[%emt 0:00:18]} 8. Na3 {[%emt 0:00:08]} b5 {[%emt 0:00:06]} 9. Nd5 {[%emt 0:00:06]} Be7 {[%emt 0:00:12]} 10. Bxf6 {[%emt 0:00:08]} Bxf6 {[%emt 0:00:06]} 11. c3 {[%emt 0:00:18]} Bg5 {[%emt 0:00:13]} 12. Nc2 {[%emt 0:00:19]} Be6 {[%emt 0:00:39] B33: Sicilian: Pelikan and Sveshnikov Variations} (12... Rb8 13. Be2 O-O 14. O-O Kh8 15. Bg4 Bb7 16. Ncb4 Nxb4 17. cxb4 g6 18. a4 bxa4 19. Rxa4 Bc6 20. Be2 Bxa4 21. Qxa4 f5 22. exf5 Rxf5 {½-½ (30) Giri,A (2783)-Carlsen,M (2835) Wijk aan Zee 2019}) 13. a4 {[%emt 0:08:01]} bxa4 {[%emt 0:01:19]} 14. Ncb4 {[%emt 0:01:48]} Nxb4 {[%emt 0:21:27]} 15. Qxa4+ {[%emt 0:05:08]} Kf8 {[%emt 0:02:06]} 16. Nxb4 {[%emt 0:10:09]} a5 $146 {[%emt 0:02:32]} ({Predecessor:} 16... g6 17. Bxa6 Kg7 18. O-O Qb6 19. Qc6 Rab8 20. Qxb6 Rxb6 {½-½ (33) Hlavac,R (2040)-Volodin,V (2200) Marianske Lazne 2013}) 17. Bb5 {[%emt 0:09:31]} g6 {[%emt 0:09:01]} 18. Bc6 {[%emt 0:15:47]} Ra7 {[%emt 0:00:46]} 19. Bd5 {[%emt 0:00:17]} Qb6 {[%emt 0:03:52]} 20. O-O {[%emt 0:16:49]} Kg7 {[%emt 0:03:56]} 21. Qc6 {[%emt 0:06:49]} Qd8 {[%emt 0:07:45]} 22. Qb5 {[%emt 0:04:21]} Bd7 {[%emt 0:06:10]} 23. Bc6 {[%emt 0:00:23]} Qc7 {[%emt 0:01:06]} 24. Bxd7 {[%emt 0:01:19]} axb4 {[%emt 0:00:15]} 25. Rxa7 {[%emt 0:02:10]} Qxa7 {[%emt 0:00:02]} 26. Bc6 {[%emt 0:01:58]} bxc3 {[%emt 0:01:45]} 27. bxc3 {[%emt 0:00:13]} Rb8 {[%emt 0:00:21]} 28. Qd3 {[%emt 0:00:18]} Rb2 {[%emt 0:01:50]} 29. Bd5 {[%emt 0:00:35]} Qc5 {[%emt 0:01:11]} 30. Qf3 {[%emt 0:00:24]} f6 {[%emt 0:00:43]} 31. g3 {[%emt 0:00:38]} Rc2 {[%emt 0:02:38]} 32. c4 {[%emt 0:00:17]} Qd4 {[%emt 0:03:06]} 33. h4 {[%emt 0:00:31]} Bd2 {[%emt 0:00:32]} 34. Rd1 {[%emt 0:02:46]} Rc1 {[%emt 0:00:07]} 35. Rxc1 {[%emt 0:00:20]} Bxc1 {[%emt 0:00:02]} 36. Qb3 {[%emt 0:00:54]} Qa7 {[%emt 0:00:44]} 37. Qb5 {[%emt 0:00:21]} Qe7 {[%emt 0:00:37]} 38. Qb8 {[%emt 0:00:18]} f5 {[%emt 0:01:18]} 39. exf5 {[%emt 0:00:49]} gxf5 {[%emt 0:00:01]} 40. Qb1 {[%emt 0:00:00]} Ba3 {[%emt 0:00:00]} 41. Qxf5 {[%emt 0:01:56]} Bc5 $2 {[%emt 0:01:55]} (41... Qf8 42. Qd7+ Kh8) 42. h5 {[%emt 0:05:07]} Bb6 {[%emt 0:05:21]} 43. Be4 {[%emt 0:05:34]} Kh6 {[%emt 0:03:02]} 44. g4 $18 {[%emt 0:01:42]} (44. Kf1 $142 Bd8) 44... Bd8 {[%emt 0:01:20]} 45. Kf1 {[%emt 0:00:22]} Qg7 {[%emt 0:00:38]} 46. Qe6+ {[%emt 0:10:38]} Kg5 {[%emt 0:05:01]} 47. Qxd6 {[%emt 0:00:26]} Kf4 {[%emt 0:01:17]} 48. Qd2+ {[%emt 0:01:45]} Kxe4 {[%emt 0:00:28]} 49. Qe3# {[%emt 0:00:13]} 1-0

[Event "71st MNE-ch 2019"]
[Site "Podgorica"]
[Date "2019.05.24"]
[Round "7.12"]
[White "Popovic, Mateja"]
[Black "Miletic, Vuk"]
[Result "0-1"]
[ECO "A40"]
[WhiteElo "1436"]
[BlackElo "1954"]
[Annotator "NA RC"]
[PlyCount "79"]
[EventDate "2019.05.18"]
[EventType "swiss"]
[EventCountry "MNE"]
[SourceTitle "playchess.com"]
[Source "ChessBase"]
[SourceQuality "1"]
[TimeControl "40/5400+30:1800+30"]

1. d4 {[%emt 0:00:02]} g6 {[%emt 0:00:00]} 2. Nf3 {[%emt 0:00:44]} Bg7 {[%emt 0:00:00]} 3. c3 {[%emt 0:03:01]} d6 {[%emt 0:00:01]} 4. Bf4 {[%emt 0:00:55]} Nf6 {[%emt 0:00:32]} 5. Nbd2 {[%emt 0:00:33]} O-O {[%emt 0:00:24]} 6. e4 {[%emt 0:04:14]} Nbd7 {[%emt 0:01:05]} 7. Bd3 {[%emt 0:03:08]} Re8 {[%emt 0:01:24]} 8. O-O {[%emt 0:01:00]} e5 {[%emt 0:00:10]} 9. Bg5 {[%emt 0:06:13]} h6 {[%emt 0:01:59]} 10. Bxf6 {[%emt 0:00:50]} Nxf6 {[%emt 0:00:58]} 11. Qb3 {[%emt 0:02:03]} Nh5 {[%emt 0:06:04]} 12. g3 {[%emt 0:05:17]} Qf6 {[%emt 0:13:48]} 13. Rfe1 {[%emt 0:03:20]} a5 {[%emt 0:13:44]} 14. a4 {[%emt 0:04:34]} g5 {[%emt 0:03:01]} 15. dxe5 {[%emt 0:05:16]} dxe5 {[%emt 0:00:01]} 16. Bc4 {[%emt 0:01:47]} Bf8 {[%emt 0:03:40]} 17. Qc2 {[%emt 0:02:47]} Bc5 {[%emt 0:02:29]} 18. Nb3 {[%emt 0:03:01]} Bb6 {[%emt 0:04:49]} 19. Qe2 {[%emt 0:01:36]} Bg4 {[%emt 0:01:26]} 20. Kg2 {[%emt 0:02:28]} Rad8 {[%emt 0:08:13]} 21. Rad1 {[%emt 0:04:17]} Bd7 {[%emt 0:08:11]} 22. Bb5 {[%emt 0:02:14]} Bxb5 {[%emt 0:02:09]} 23. axb5 {[%emt 0:01:14]} g4 {[%emt 0:08:00]} 24. Nfd2 {[%emt 0:04:44]} Qe6 {[%emt 0:07:24]} 25. Nc4 {[%emt 0:01:21]} a4 {[%emt 0:04:34]} 26. Nxb6 {[%emt 0:04:31]} cxb6 {[%emt 0:01:36]} 27. Nc1 {[%emt 0:03:26]} Nf6 {[%emt 0:00:25]} 28. Nd3 {[%emt 0:00:22]} Qc4 {[%emt 0:01:03]} 29. Qe3 {[%emt 0:06:49]} Kg7 {[%emt 0:00:32]} 30. Nxe5 {[%emt 0:01:07]} Qxb5 {[%emt 0:03:43]} 31. Rxd8 {[%emt 0:00:56]} Rxd8 {[%emt 0:00:01]} 32. Qf4 {[%emt 0:00:14]} Qxb2 {[%emt 0:02:00]} 33. Nxg4 {[%emt 0:00:32]} Nxg4 {[%emt 0:00:38]} 34. Qxg4+ {[%emt 0:00:14]} Kf8 {[%emt 0:00:43]} 35. Qh4 {[%emt 0:02:03]} Rd6 {[%emt 0:01:21]} 36. e5 {[%emt 0:00:15]} Re6 {[%emt 0:00:50]} 37. Qxa4 {[%emt 0:00:40]} Qxc3 {[%emt 0:00:24]} 38. Re4 {[%emt 0:01:55]} Qc6 {[%emt 0:00:46]} 39. Qd4 {[%emt 0:03:28]} f5 {[%emt 0:00:30]} 40. Qa4 0-1

[Event "71st MNE-ch 2019"]
[Site "Podgorica"]
[Date "2019.05.24"]
[Round "7.13"]
[White "Abramovic, Dragoljub"]
[Black "Sabotic, Denis"]
[Result "1-0"]
[ECO "D03"]
[WhiteElo "2063"]
[BlackElo "1682"]
[Annotator "NA RC"]
[PlyCount "121"]
[EventDate "2019.05.18"]
[EventType "swiss"]
[EventCountry "MNE"]
[SourceTitle "playchess.com"]
[Source "ChessBase"]
[SourceQuality "1"]
[TimeControl "40/5400+30:1800+30"]

1. d4 {[%emt 0:03:31]} Nf6 {[%emt 0:00:00]} 2. Bg5 {[%emt 0:00:08]} d5 {[%emt 0:01:13]} 3. Nf3 {[%emt 0:00:07]} Ne4 {[%emt 0:00:51]} 4. Bf4 {[%emt 0:00:14]} Bf5 {[%emt 0:02:54]} 5. e3 {[%emt 0:00:06]} e6 {[%emt 0:00:35]} 6. Nbd2 {[%emt 0:00:11]} Nd7 {[%emt 0:01:02]} 7. h3 {[%emt 0:00:44]} c5 {[%emt 0:02:23]} 8. c3 {[%emt 0:00:07]} c4 {[%emt 0:01:36]} 9. g4 {[%emt 0:00:23]} Bg6 {[%emt 0:00:53]} 10. Nxe4 {[%emt 0:00:46]} Bxe4 {[%emt 0:00:25]} 11. Bg2 {[%emt 0:01:20]} Bd3 {[%emt 0:01:42]} 12. Bf1 {[%emt 0:00:17]} Bxf1 {[%emt 0:02:25]} 13. Kxf1 {[%emt 0:00:06]} b5 {[%emt 0:05:00]} 14. Qe2 {[%emt 0:00:53]} Nf6 {[%emt 0:01:32]} 15. Bg5 {[%emt 0:00:23]} h6 {[%emt 0:04:14]} 16. Bxf6 {[%emt 0:00:10]} gxf6 {[%emt 0:01:28]} 17. e4 {[%emt 0:00:08]} Be7 {[%emt 0:05:19]} 18. b3 {[%emt 0:00:14]} Rb8 {[%emt 0:05:36]} 19. a4 {[%emt 0:01:39]} b4 {[%emt 0:08:57]} 20. bxc4 {[%emt 0:00:16]} bxc3 {[%emt 0:00:45]} 21. exd5 {[%emt 0:00:25]} Rb2 {[%emt 0:11:37]} 22. Qd3 {[%emt 0:00:10]} Bb4 {[%emt 0:00:56]} 23. dxe6 {[%emt 0:00:50]} fxe6 {[%emt 0:05:52]} 24. Qg6+ {[%emt 0:00:35]} Kd7 {[%emt 0:02:05]} 25. Kg2 {[%emt 0:00:35]} h5 {[%emt 0:03:02]} 26. g5 {[%emt 0:03:46]} Qa8 {[%emt 0:07:16]} 27. Rhe1 {[%emt 0:01:34]} Rf8 {[%emt 0:01:30]} 28. Qh7+ {[%emt 0:01:24]} Be7 29. d5 {[%emt 0:00:26]} e5 {[%emt 0:04:42]} 30. Nd4 {[%emt 0:01:20]} fxg5 {[%emt 0:02:00]} 31. Nf5 {[%emt 0:01:30]} Re8 {[%emt 0:05:20]} 32. Rxe5 {[%emt 0:00:14]} Qd8 {[%emt 0:00:10]} 33. Rae1 {[%emt 0:00:24]} Kc7 {[%emt 0:03:43]} 34. Nxe7 {[%emt 0:00:11]} Qd7 {[%emt 0:01:38]} 35. d6+ {[%emt 0:00:40]} Kb8 {[%emt 0:02:06]} 36. c5 {[%emt 0:02:34]} Rf8 {[%emt 0:01:37]} 37. Rf5 {[%emt 0:01:49]} Rc8 {[%emt 0:01:13]} 38. Rxg5 {[%emt 0:00:38]} Qb7+ {[%emt 0:01:17]} 39. Qe4 {[%emt 0:00:32]} Qxe4+ {[%emt 0:01:14]} 40. Rxe4 {[%emt 0:00:00]} Rf8 {[%emt 0:00:00]} 41. Rf5 {[%emt 0:00:34]} Rxf5 {[%emt 0:02:54]} 42. Nxf5 {[%emt 0:00:08]} Kb7 {[%emt 0:00:11]} 43. d7 {[%emt 0:00:14]} Rd2 {[%emt 0:00:03]} 44. Nd6+ {[%emt 0:00:32]} Kc7 {[%emt 0:00:18]} 45. Nb5+ {[%emt 0:01:06]} Kxd7 {[%emt 0:01:07]} 46. Nxc3 {[%emt 0:00:08]} Kc6 {[%emt 0:00:02]} 47. Re7 {[%emt 0:00:17]} a6 {[%emt 0:00:40]} 48. Ne4 {[%emt 0:00:07]} Ra2 {[%emt 0:00:35]} 49. Kg3 {[%emt 0:00:38]} Rxa4 {[%emt 0:01:16]} 50. f4 {[%emt 0:00:05]} Ra3+ {[%emt 0:01:40]} 51. Kf2 {[%emt 0:00:08]} Rxh3 {[%emt 0:01:42]} 52. f5 {[%emt 0:00:06]} Rh2+ {[%emt 0:00:54]} 53. Kg3 {[%emt 0:00:11]} Rh1 {[%emt 0:00:59]} 54. f6 {[%emt 0:00:07]} Rg1+ {[%emt 0:00:02]} 55. Kf2 {[%emt 0:00:24]} Rg4 {[%emt 0:00:20]} 56. f7 {[%emt 0:00:18]} Rf4+ {[%emt 0:01:24]} 57. Ke3 {[%emt 0:00:08]} Rf5 {[%emt 0:00:15]} 58. Re6+ {[%emt 0:00:12]} Kd7 {[%emt 0:01:53]} 59. Rf6 {[%emt 0:01:12]} Rxf6 {[%emt 0:00:18]} 60. Nxf6+ {[%emt 0:00:02]} Ke7 {[%emt 0:00:01]} 61. c6 {[%emt 0:00:33]} 1-0